Workbook

Sheet Serviceability Calculator
I6: VERSION-2025-Q2 HEM
A7: INDICATIVE LOAN SERVICEABILITY CALCULATOR | H7: Issue Date: | I7: 2025-11-03
A8: Loan Details
B10: Applicant 1 Name | C10: John | E10: Age | F10: 23 | H10: LOAN ID | M10: Disclaimer
M11: Wisr has provided this Indicative Loan Serviceability Calculator to provide the user with an indication of a single or joint loan applicants capacity to meet their financial commitments. This calculation is entirely indicative in nature and does not bind Wisr in any way. Provision of this tool and and the calculation does not remove the obligation of a broker to make a preliminary assessment as required under the NCCP Act.
B12: Applicant 2 Name | E12: Age | G12: Estimated Interest Rate | I12: 0.1354
B16: Application Date | C16: =TODAY() -> 2025-10-27 | H16: Total Liabilities
B18: Loan Term (Months) | C18: 84 | H18: Total Assets
A21: Applicant(s) Annual Income | S21: State | T21: No of dependents
A22: Applicant Name(s) | C22: Gross Annual Salary Income | D22: Overtime | E22: Commission/Recurring Bonuses | F22: Second Job | G22: Rental Income | H22: Investment Income – Interes | I22: Tax Applicable | J22: Net Cash (Aft.Tax) | S22: NSW | T22: 0 | V22: 2 | X22: Married status Index
A23: ="1) "&C10 -> 1) John | C23: 90000 | I23: =VLOOKUP(C23+D23*0.8+E23*0.8+F23+$E$25+H23*0.8,TaxRates,2,TRUE)+VLOOKUP(C23+D23*0.8+E23*0.8+F23+$E$25+H23*0.8,TaxRates,3,TRUE)*(C23+D23*0.8+E23*0.8+F23+$E$25+H23*0.8-VLOOKUP(C23+D23*0.8+E23*0.8+F23+$E$25+H23*0.8,TaxRates,1,TRUE))+SUM(C23+D23*0.8+E23*0.8+F23+$E$25+H23*0.8)*0.02-SUM('Income Tax Rates'!F19:F20) -> 19587.7 | J23: =IF(SUM(C23+D23*0.8+E23*0.8+F23+$E$25+H23*0.8)=0,0,IF(SUM(C23+D23*0.8+E23*0.8+F23+$E$25+H23*0.8)-I23<0,0,SUM(C23+D23*0.8+E23*0.8+F23+$E$25+H23*0.8)-I23)) -> 70412.3 | S23: VIC | T23: 1 | V23: 1 | X23: Married
A24: ="2) "&C12 -> 2) | I24: =VLOOKUP(C24+D24*0.8+E24*0.8+F24+H24*0.8,TaxRates,2,TRUE)+VLOOKUP(C24+D24*0.8+E24*0.8+F24+H24*0.8,TaxRates,3,TRUE)*(C24+D24*0.8+E24*0.8+F24+H24*0.8-VLOOKUP(C24+D24*0.8+E24*0.8+F24+H24*0.8,TaxRates,1,TRUE))+SUM(C24+D24*0.8+E24*0.8+F24+H24*0.8)*0.02-SUM('Income Tax Rates'!F42:F43) -> -700 | J24: =IF(SUM(C24+D24*0.8+E24*0.8+F24+H24*0.8)=0,0,IF(SUM(C24+D24*0.8+E24*0.8+F24+H24*0.8)-I24<0,0,SUM(C24+D24*0.8+E24*0.8+F24+H24*0.8)-I24)) -> 0 | S24: QLD | T24: 2 | V24: 2 | X24: Single
A25: Partner's income verified for non-joint app | D25: 75088 | E25: =IF($O$47="yes",IF((G23)*0.8*$T$56>$L$49,(G23)*0.8*$T$56-$L$49,0),IF((G23)*0.8>$L$49,(G23)*0.8-$L$49,0)) -> 0 | G25: Net monthly Income after TAX inc. MEDICARE LEVY | J25: =SUM(J23:J24)/12 -> 5867.691667 | S25: SA | T25: 3 | X25: Defacto
A26: Non-taxable Annual Income | S26: WA | T26: 4
B27: Description | C27: Amount | E27: Possible addbacks for self-employed applicant | I27: Description | J27: Amount | S27: TAS | T27: 5
B28: Family Tax Allowance &Supplements | G28: Amount | I28: Rent assistance | S28: NT | T28: 6
B29: Child Support | E29: Depreciation | S29: ACT | T29: 7
B30: VET Affairs Pension | E30: Super over contribution | T30: 8
B31: Carers Pension | E31: Other | T31: 9
H32: Net monthly NON TAXABLE INCOME | J32: =SUM(C28:C31,G29:G31,J28:J31*0.8)/12 -> 0 | T32: 10
A33: Household general living expenses
B35: Marital status | F35: Single | I35: =IF(ISNUMBER($I$36),"","Please check the State&post code") -> 
B36: Number of Dependants | F36: 2 | I36: =IF((((INDEX(INDIRECT(IF(OR(F37="ACT",F37="NT"),"",F37)&' Income lookup tables'!Y14),MATCH(VLOOKUP($F$35,' Income lookup tables'!$AA$3:$AB$5,2,0)&$F$36,' Income lookup tables'!$A$13:$A$34&' Income lookup tables'!$B$13:$B$34,0),MATCH(SUM(C23+D23*0.8+E23*0.8+F23+E25+H23*0.8+C24+D24*0.8+E24*0.8+F24+H24*0.8)+D25+$J$32*12,' Income lookup tables'!$C$1:$T$1,1)))*52)/12)*((SUM(C23:H23)+J32*12)/(SUM(C23:H23)+J32*12+D25))>(((INDEX(INDIRECT(IF(OR(F37="ACT",F37="NT"),"",F37)&' Income lookup tables'!Y14),MATCH(VLOOKUP('Serviceability Calculator'!$F$35,' Income lookup tables'!$AA$3:$AB$5,2,0)&$F$36,' Income lookup tables'!$A$13:$A$34&' Income lookup tables'!$B$13:$B$34,0),MATCH(SUM(C23+D23*0.8+E23*0.8+F23+E25+H23*0.8+C24+D24*0.8+E24*0.8+F24+H24*0.8)+D25+$J$32*12,' Income lookup tables'!$C$1:$T$1,1)))*52)/12)*0.5,(((INDEX(INDIRECT(IF(OR(F37="ACT",F37="NT"),"",F37)&' Income lookup tables'!Y14),MATCH(VLOOKUP('Serviceability Calculator'!$F$35,' Income lookup tables'!$AA$3:$AB$5,2,0)&$F$36,' Income lookup tables'!$A$13:$A$34&' Income lookup tables'!$B$13:$B$34,0),MATCH(SUM(C23+D23*0.8+E23*0.8+F23+E25+H23*0.8+C24+D24*0.8+E24*0.8+F24+H24*0.8)+D25+$J$32*12,' Income lookup tables'!$C$1:$T$1,1)))*52)/12)*((SUM(C23:H23)+J32*12)/(SUM(C23:H23)+J32*12+D25)),(((INDEX(INDIRECT(IF(OR(F37="ACT",F37="NT"),"",F37)&' Income lookup tables'!Y14),MATCH(VLOOKUP('Serviceability Calculator'!$F$35,' Income lookup tables'!$AA$3:$AB$5,2,0)&$F$36,' Income lookup tables'!$A$13:$A$34&' Income lookup tables'!$B$13:$B$34,0),MATCH(SUM(C23+D23*0.8+E23*0.8+F23+E25+H23*0.8+C24+D24*0.8+E24*0.8+F24+H24*0.8)+D25+$J$32*12,' Income lookup tables'!$C$1:$T$1,1)))*52)/12)*0.5) -> 2267.881372 | L36: "The Total (Yearly) Household General Living Expenses result for married and de-facto applicants applying alone reflects apportioning based on verifiable partner income to max 50%"
B37: Application State | F37: QLD
B38: Application PostCode | F38: 4703 | H38: Monthly GLE | I38: =IF(I36>F40,I36*12,F40*12)/12 -> 2267.881372
B39: Living Type | F39: Buyer | I39: Higher amount of HEM or declared GLE
B40: Customer declared total General living expenses p/m | F40: =IF(SUM(C23:H23,J32*12)/SUM(C23:H23,J32*12,D25)<0.5,E40/2,E40*SUM(C23:H23,J32*12)/SUM(C23:H23,J32*12,D25)) -> 0
A41: Financial Commitments
B43: Wisr Loan Amount | C43: 30000 | D43: Monthly Repayment | F43: =-PMT(I12/12,C18,F45,0)+IF(C46="Secured",10,0) -> 601.1914494 | H43: This Loan | J43: Monthly Amount
B44: Application Fee | C44: 520 | H44: Wisr P/Loan | J44: =F43 -> 601.1914494 | M44: Repayment | N44: Frequency | O44: Shared or not
B45: Broker Fee | C45: 2000 | D45: LOAN TOTAL | F45: =SUM(C43:C45) -> 32520 | H45: Other Monthly Commitments : | Q45: Applicant's actual P+I Mortgage payments (entered in pink cells) are increased by 5% to approx the buffer effect
B46: Loan Product | C46: Unsecured | H46: Mortgage (Owner Occupied) | J46: =IFERROR(M46*VLOOKUP(N46,$Q$62:$R$64,2,0)*IF(O46="Yes",$T$56,1),0)*1/12 -> 500 | L46: Mortgage (O/O) | M46: 500 | N46: Monthly | O46: NO
B47: Credit card & Personal loan liabilities break down | H47: Net Mortgage liability for invest property | J47: =ABS(IF($O$47="yes",IF((G23+G24)*0.8*$T$56>$L$49,0,((G23+G24)*0.8*$T$56-$L$49)),IF((G23+G24)*0.8>$L$49,0,(G23+G24)*0.8-$L$49)))/12 -> 500 | L47: Mortgage (IPL) | M47: 500 | N47: Monthly | O47: NO
B48: Personal Loan breakdown | C48: Amount | D48: Balance | E48: Repayment | F48: Pmt Frequency | G48: Consolidated | H48: Boarding/Rent | J48: =IF(IF($C$12="",IF(OR($F$39={"Boarder","Employer"})=TRUE,650,IF($F$39="Living With Parents",IF($F$10<26,400,650),0)),IF(OR($F$39={"Renter","Buyer","Other"})=TRUE,0,750))>IFERROR(M48*VLOOKUP(N48,$Q$62:$R$64,2,0)*IF(O48="Yes",$T$56,1),0)/12,IF($C$12="",IF(OR($F$39={"Boarder","Employer"})=TRUE,650,IF($F$39="Living With Parents",IF($F$10<26,400,650),0)),IF(OR($F$39={"Renter","Buyer","Other"})=TRUE,0,750)),IFERROR(M48*VLOOKUP(N48,$Q$62:$R$64,2,0)*IF(O48="Yes",$T$56,1),0)/12) -> 0 | L48: Board/Rent | N48: Monthly | O48: Yes
B49: pl | E49: 903 | F49: Monthly | G49: No | H49: Credit Cards/OD total from the breakdown | J49: =SUMPRODUCT(C55:C61,--NOT(ISNUMBER(SEARCH("close",G55:G61))))*0.038 -> 76 | L49: =IFERROR($M$47*VLOOKUP($N$47,$Q$62:$R$64,2,0)*IF($O$47="Yes",$T$56,1),0)*1 -> 6000
F50: Monthly | G50: No | H50: Personal Loans total from the breakdown | J50: =SUMPRODUCT(E49:E53,LOOKUP(F49:F53,$Q$62:$Q$64,$R$62:$R$64),--NOT(ISNUMBER(SEARCH("close",G49:G53))),IF(ISNUMBER(SEARCH("shared",G49:G53)), T56,1))/12 -> 903
F51: Monthly | G51: Yes to close | M51: Repayment | N51: Frequency
F52: Fortnightly | G52: No | H52: Any additional Living expenses (per month)
F53: Monthly | G53: Yes to close | H53: Private School Fee | J53: =IFERROR(IFERROR(M53*VLOOKUP(N53,$Q$62:$R$64,2,0),0)*$T$56,0)/12 -> 0 | L53: Private School Fee | N53: Fortnightly | Q53: Mortgage / Additional expenses Proportion Calculator based on Income ratio
B54: Credit Card/Overdraft breakdown | C54: Limit | D54: Balance | E54: Repayment | F54: Pmt Frequency | G54: Consolidated | H54: Child Support/Maintenance | J54: 0 | L54: Child Support | N54: Fortnightly | S54: for Mortgage | T54: for Additional Expenses
B55: cc | C55: 2000 | G55: No | H55: Private Health Insurance | J55: 0 | L55: Private Health Insurance | N55: Monthly | S55: Weekly Repayment | T55: % of Proportion
G56: No | H56: Life insurance/Pet Insurance | J56: 0 | L56: Life insurance/Pet Insurance | N56: Monthly | Q56: Applicant's income | R56: =SUM(C23:H23,J32*12) -> 90000 | S56: =IFERROR($R$47*($R56/(SUM($R$55:$R$59))),"") -> 0 | T56: =IFERROR(R56/(SUM($R$56:$R$57)),0) -> 0.5451637914
G57: No | H57: Other | J57: 0 | L57: Additional Motor Vehicle (2nd car) | N57: Monthly | Q57: Partner's income | R57: =D25 -> 75088 | S57: =IFERROR($R$47*($R57/(SUM($R$55:$R$59))),"") -> 0 | T57: =IFERROR(R57/(SUM($R$56:$R$57)),0) -> 0.4548362086
G58: No | J58: 0 | L58: Other | N58: Monthly
G59: No | J59: 0 | N59: Monthly
G60: No | H60: TOTAL Monthly COMMITMENTS | J60: =J46+SUM(J48:J50)+SUM(J53:J59)+J44+J47 -> 2580.191449
Q61: Payment frequency | R61: Multiplier | S61: Consolidate | T61: Shared or not
A62: Net Servicing Ratio | Q62: Fortnightly | R62: 26 | S62: No | T62: Yes
B63: Net cash after tax after addbacks (per month) | G63: =SUM(J25+J32) -> 5867.691667 | Q63: Monthly | R63: 12 | S63: Yes open | T63: NO
B64: Less Living Expenses (per month) | G64: =I38 -> 2267.881372 | Q64: Weekly | R64: 52 | S64: Yes to close
B65: Net Available ( per month) | G65: =SUM(G63-G64) -> 3599.810294 | I65: =IF((G67>8.34),"Pass","Fail") -> Pass | S65: Shared loan- No
B66: Commitments (per month) | G66: =J60 -> 2580.191449 | N66: 12 | O66: =J25/N66 -> 488.9743056 | Q66: Loan Term | S66: Shared Loan- Yes Open
B67: Cash Surplus Available (per month) | G67: =G65-G66 -> 1019.618845 | H67: ( Minmum surplus per month $8.34) | Q67: 36 | S67: Shared Loan- to Close
B68: Net Servicing Ratio | G68: =G65/G66 -> 1.395171779 | H68: (Minmum 1.01) | Q68: 60
Q69: 84
Q72: Nontaxable 100% | S72: Notaxable 80%
Q73: Family Tax Allowance &Supplements | S73: Rent assistance
Q74: Child Support
Q75: VET Affairs Pension
Q76: Disability Support Pension
Q77: Carers Pension
Q78: Carers allowance
Q79: Aged Pension including overseas pension
Q83: taxable Income Type | S83: Discounted taxable income at 80%
Q84: Salary & Wages | S84: Overtime
Q85: contracted income | S85: Commission / Bonuses (recurring)
Q86: Second Job | S86: Investment Income – Interes
Q87: Committed Insurance Payments (e.g. income protection) | S87: Investment Income - Dividends
Q88: Government superannuation schemes | S88: Parental leave* conditions apply
S89: Parenting payments* conditions apply

Sheet Lender Comparison
B3: LENDER SCENARIO COMPARISON
D4: Wisr | K4: Lender two | R4: Lender three
B5: Loan details | I5: Loan details | P5: Loan details
C7: Loan Amount applied for | F7: 35000 | J7: Loan Amount applied for | M7: =F7 -> 35000 | Q7: Loan Amount applied for | T7: =F7 -> 35000
C9: Lenders Fee | F9: 575 | J9: Lenders Fee | M9: 575 | Q9: Lenders Fee | T9: 575
C11: Origination Fee | F11: 990 | J11: Origination Fee | M11: 990 | Q11: Origination Fee | T11: 990
C13: Other Upfront lender fees | F13: 0 | J13: Other Upfront lender fees | M13: 0 | Q13: Other Upfront lender fees | T13: 0
C15: Total Amount of Credit | F15: =F7+F9+F11+F13 -> 36565 | J15: Total Amount of Credit | M15: =M7+M9+M11+M13 -> 36565 | Q15: Total Amount of Credit | T15: =T7+T9+T11+T13 -> 36565
C17: Interest Rate p.a | F17: 0.1 | J17: Interest Rate p.a | M17: 0.11 | Q17: Interest Rate p.a | T17: 0.125
C19: Term in Months | F19: 60 | J19: Term in Months | M19: 60 | Q19: Term in Months | T19: 60
C21: Monthly Account Fee | F21: 0 | J21: Monthly Account Fee | M21: 0 | Q21: Monthly Account Fee | T21: 0
B23: Results | I23: Results | P23: Results
C25: Monthly Repayment | F25: =PMT(F17/12,F19,-F15)+F21 -> 776.8981899 | J25: Monthly Repayment | M25: =PMT(M17/12,M19,-M15)+M21 -> 795.0116997 | Q25: Monthly Repayment | T25: =PMT(T17/12,T19,-T15)+T21 -> 822.6371112
C27: Total Repayment | F27: =F25*F19 -> 46613.89139 | J27: Total Repayment | M27: =M25*M19 -> 47700.70198 | Q27: Total Repayment | T27: =T25*T19 -> 49358.22667
C29: Total Interest | F29: =F27-F15 -> 10048.89139 | J29: Total Interest | M29: =M27-M15 -> 11135.70198 | Q29: Total Interest | T29: =T27-T15 -> 12793.22667

Sheet LVR Calculator
B4: LVR Calculator
B5: Please input into shaded cells | D5: Dealership Sale? | E5: No
C7: Current Vehicle
B8: 1 | C8: Trade Value | D8: 15000 | F8: 19 | G8: RRP or RV* | H8: 31000 | I8: *RRP for new cars and KM adjusted Retail Value for used cars.
B9: 2 | C9: Outstanding Loan Balance | D9: 12000 | F9: 20 | G9: Amount of Credit | H9: =D29 -> 30075 | I9: =18
B10: 3 | C10: Equity | D10: =D8-D9 -> 3000 | E10: =1-2
F11: 21 | G11: LVR | H11: =H9/H8 -> 0.9701612903 | I11: =20/19
C12: Purchase Vehicle | G12: Note:
B13: 4 | C13: Sale Price | D13: 31000 | G13: - If LVR > 130%, +150bps will be applied to the interest rate.
B14: 5 | C14: Deposit | D14: 1000 | G14: - LVR > 130% is not available for assets aged 10-12 years at start of term
B15: 6 | C15: Trade Equity | D15: =D10 -> 3000 | E15: =3
B16: 7 | C16: Funds required | D16: =D13-D15-D14 -> 27000 | E16: =4-6-5
C18: Additional costs
B19: 10 | C19: Insurance | D19: 1000
B20: 11 | C20: Warranty | D20: 500
B21: 12 | C21: Other Fees | D21: 0
B23: 13 | C23: Net Amount Funded | D23: =D16+D19+D20+D21 -> 28500 | E23: Please insert into cell 'C42' in Serv. Calc
B25: 14 | C25: LEF | D25: 525 | E25: Please insert into cell 'C43' in Serv. Calc
B26: 15 | C26: Broker Fee | D26: 990 | E26: Please insert into cell 'C44' in Serv. Calc
B27: 16 | C27: PPSR | D27: 10
B28: 17 | C28: Private Sale Fee | D28: =_xlfn.IFS(E5="Yes",0,E5="No",50) -> 50
B29: 18 | C29: Amount of Credit | D29: =SUM(D23+D25+D26+D27+D28) -> 30075 | E29: =13+14+15+16

Sheet Income lookup tables (hidden)
B1: Income band | C1: 0 | D1: 26000 | E1: 39000 | F1: 52000 | G1: 66000 | H1: 79000 | I1: 105000 | J1: 131000 | K1: 157000 | L1: 184000 | M1: 210000 | N1: 262000 | O1: 328000 | P1: 394000 | Q1: 656000
Y2: State | AA2: Married status Index
Y3: NSW | AA3: Married | AB3: 2
Y4: VIC | AA4: Single | AB4: 1
Y5: QLD | AA5: Defacto | AB5: 2
Y6: SA
Y7: WA
Y8: TAS
Y9: NT
Y10: ACT
A11: HEM weekly lookup tables
A12: NSWMetro | B12: No of dependents | C12: 0 | D12: 26000 | E12: 39000 | F12: 52000 | G12: 66000 | H12: 79000 | I12: 105000 | J12: 131000 | K12: 157000 | L12: 184000 | M12: 210000 | N12: 262000 | O12: 328000 | P12: 394000 | Q12: 656000
A13: 2 | B13: 0 | C13: 583 | D13: 583 | E13: 598 | F13: 623 | G13: 664 | H13: 727 | I13: 814 | J13: 888 | K13: 970 | L13: 1019 | M13: 1085 | N13: 1201 | O13: 1373 | P13: 1388 | Q13: 1388 | Y13: Postcodelookup
A14: 2 | B14: 1 | C14: 688 | D14: 688 | E14: 688 | F14: 712 | G14: 753 | H14: 817 | I14: 904 | J14: 979 | K14: 1061 | L14: 1110 | M14: 1176 | N14: 1293 | O14: 1466 | P14: 1481 | Q14: 1481 | Y14: =TRIM(IF(OR('Serviceability Calculator'!I37="ACT",'Serviceability Calculator'!I37="NT"),"ALL",VLOOKUP('Serviceability Calculator'!$F$38,$Y$36:$Z$86,2))) -> NonMetro
A15: 2 | B15: 2 | C15: 754 | D15: 754 | E15: 754 | F15: 779 | G15: 819 | H15: 882 | I15: 969 | J15: 1043 | K15: 1125 | L15: 1173 | M15: 1239 | N15: 1355 | O15: 1527 | P15: 1542 | Q15: 1542
A16: 2 | B16: 3 | C16: 846 | D16: 846 | E16: 846 | F16: 846 | G16: 886 | H16: 949 | I16: 1036 | J16: 1110 | K16: 1192 | L16: 1240 | M16: 1306 | N16: 1422 | O16: 1594 | P16: 1609 | Q16: 1609
A17: 2 | B17: 4 | C17: 938 | D17: 938 | E17: 938 | F17: 913 | G17: 954 | H17: 1016 | I17: 1103 | J17: 1177 | K17: 1259 | L17: 1308 | M17: 1373 | N17: 1490 | O17: 1661 | P17: 1676 | Q17: 1676
A18: 2 | B18: 5 | C18: 1030 | D18: 1030 | E18: 1030 | F18: 980 | G18: 1021 | H18: 1084 | I18: 1171 | J18: 1244 | K18: 1326 | L18: 1375 | M18: 1440 | N18: 1557 | O18: 1728 | P18: 1743 | Q18: 1743
A19: 2 | B19: 6 | C19: 1122 | D19: 1122 | E19: 1122 | F19: 1048 | G19: 1088 | H19: 1151 | I19: 1238 | J19: 1312 | K19: 1394 | L19: 1442 | M19: 1508 | N19: 1624 | O19: 1795 | P19: 1810 | Q19: 1810
A20: 2 | B20: 7 | C20: 1214 | D20: 1214 | E20: 1214 | F20: 1115 | G20: 1156 | H20: 1218 | I20: 1305 | J20: 1379 | K20: 1461 | L20: 1509 | M20: 1575 | N20: 1691 | O20: 1862 | P20: 1877 | Q20: 1877
A21: 2 | B21: 8 | C21: 1306 | D21: 1306 | E21: 1306 | F21: 1182 | G21: 1223 | H21: 1285 | I21: 1372 | J21: 1446 | K21: 1528 | L21: 1576 | M21: 1642 | N21: 1758 | O21: 1929 | P21: 1944 | Q21: 1944
A22: 2 | B22: 9 | C22: 1398 | D22: 1398 | E22: 1398 | F22: 1250 | G22: 1290 | H22: 1353 | I22: 1440 | J22: 1513 | K22: 1595 | L22: 1643 | M22: 1709 | N22: 1825 | O22: 1996 | P22: 2011 | Q22: 2011
A23: 2 | B23: 10 | C23: 1490 | D23: 1490 | E23: 1490 | F23: 1317 | G23: 1357 | H23: 1420 | I23: 1507 | J23: 1580 | K23: 1662 | L23: 1710 | M23: 1776 | N23: 1892 | O23: 2063 | P23: 2078 | Q23: 2078
A24: 1 | B24: 0 | C24: 296 | D24: 311 | E24: 326 | F24: 351 | G24: 392 | H24: 455 | I24: 542 | J24: 616 | K24: 699 | L24: 747 | M24: 813 | N24: 930 | O24: 1103 | P24: 1117 | Q24: 1117
A25: 1 | B25: 1 | C25: 409 | D25: 409 | E25: 423 | F25: 448 | G25: 488 | H25: 551 | I25: 638 | J25: 712 | K25: 793 | L25: 842 | M25: 907 | N25: 1023 | O25: 1195 | P25: 1209 | Q25: 1209
A26: 1 | B26: 2 | C26: 519 | D26: 519 | E26: 533 | F26: 558 | G26: 599 | H26: 661 | I26: 748 | J26: 821 | K26: 903 | L26: 951 | M26: 1017 | N26: 1133 | O26: 1304 | P26: 1319 | Q26: 1319
A27: 1 | B27: 3 | C27: 644 | D27: 644 | E27: 644 | F27: 668 | G27: 709 | H27: 771 | I27: 858 | J27: 931 | K27: 1013 | L27: 1061 | M27: 1126 | N27: 1242 | O27: 1413 | P27: 1428 | Q27: 1428
A28: 1 | B28: 4 | C28: 769 | D28: 769 | E28: 754 | F28: 778 | G28: 819 | H28: 881 | I28: 968 | J28: 1041 | K28: 1123 | L28: 1170 | M28: 1236 | N28: 1351 | O28: 1522 | P28: 1537 | Q28: 1537
A29: 1 | B29: 5 | C29: 893 | D29: 893 | E29: 864 | F29: 889 | G29: 929 | H29: 991 | I29: 1078 | J29: 1151 | K29: 1232 | L29: 1280 | M29: 1345 | N29: 1461 | O29: 1631 | P29: 1646 | Q29: 1646
A30: 1 | B30: 6 | C30: 1018 | D30: 1018 | E30: 974 | F30: 999 | G30: 1039 | H30: 1101 | I30: 1187 | J30: 1261 | K30: 1342 | L30: 1390 | M30: 1455 | N30: 1570 | O30: 1740 | P30: 1755 | Q30: 1755
A31: 1 | B31: 7 | C31: 1143 | D31: 1143 | E31: 1085 | F31: 1109 | G31: 1149 | H31: 1211 | I31: 1297 | J31: 1370 | K31: 1452 | L31: 1499 | M31: 1564 | N31: 1679 | O31: 1849 | P31: 1864 | Q31: 1864
A32: 1 | B32: 8 | C32: 1268 | D32: 1268 | E32: 1195 | F32: 1219 | G32: 1259 | H32: 1321 | I32: 1407 | J32: 1480 | K32: 1561 | L32: 1609 | M32: 1674 | N32: 1789 | O32: 1959 | P32: 1973 | Q32: 1973
A33: 1 | B33: 9 | C33: 1393 | D33: 1393 | E33: 1305 | F33: 1329 | G33: 1369 | H33: 1431 | I33: 1517 | J33: 1590 | K33: 1671 | L33: 1719 | M33: 1784 | N33: 1898 | O33: 2068 | P33: 2082 | Q33: 2082
A34: 1 | B34: 10 | C34: 1518 | D34: 1518 | E34: 1415 | F34: 1440 | G34: 1480 | H34: 1541 | I34: 1627 | J34: 1700 | K34: 1781 | L34: 1828 | M34: 1893 | N34: 2008 | O34: 2177 | P34: 2191 | Q34: 2191 | Y34: MetroPostcode
A36: NSWNonMetro | B36: No of dependents | C36: 0 | D36: 26000 | E36: 39000 | F36: 52000 | G36: 66000 | H36: 79000 | I36: 105000 | J36: 131000 | K36: 157000 | L36: 184000 | M36: 210000 | N36: 262000 | O36: 328000 | P36: 394000 | Q36: 656000 | Y36: 800 | Z36: ALL | AB36: Metro
A37: 2 | B37: 0 | C37: 611 | D37: 611 | E37: 626 | F37: 651 | G37: 692 | H37: 754 | I37: 842 | J37: 916 | K37: 998 | L37: 1046 | M37: 1112 | N37: 1229 | O37: 1401 | P37: 1416 | Q37: 1416 | Y37: 832 | Z37: ALL | AB37: NonMetro
A38: 2 | B38: 1 | C38: 715 | D38: 715 | E38: 715 | F38: 740 | G38: 781 | H38: 845 | I38: 932 | J38: 1006 | K38: 1089 | L38: 1138 | M38: 1204 | N38: 1321 | O38: 1494 | P38: 1509 | Q38: 1509 | Y38: 833 | Z38: ALL | AB38: All
A39: 2 | B39: 2 | C39: 782 | D39: 782 | E39: 782 | F39: 806 | G39: 847 | H39: 910 | I39: 997 | J39: 1071 | K39: 1153 | L39: 1201 | M39: 1267 | N39: 1383 | O39: 1555 | P39: 1570 | Q39: 1570 | Y39: 899 | Z39: ALL
A40: 2 | B40: 3 | C40: 874 | D40: 874 | E40: 874 | F40: 874 | G40: 914 | H40: 977 | I40: 1064 | J40: 1138 | K40: 1220 | L40: 1268 | M40: 1334 | N40: 1450 | O40: 1622 | P40: 1637 | Q40: 1637 | Y40: 2000 | Z40: Metro
A41: 2 | B41: 4 | C41: 966 | D41: 966 | E41: 966 | F41: 941 | G41: 981 | H41: 1044 | I41: 1131 | J41: 1205 | K41: 1287 | L41: 1335 | M41: 1401 | N41: 1517 | O41: 1689 | P41: 1704 | Q41: 1704 | Y41: 2234 | Z41: Metro
A42: 2 | B42: 5 | C42: 1058 | D42: 1058 | E42: 1058 | F42: 1008 | G42: 1049 | H42: 1111 | I42: 1198 | J42: 1272 | K42: 1354 | L42: 1402 | M42: 1468 | N42: 1584 | O42: 1756 | P42: 1771 | Q42: 1771 | Y42: 2235 | Z42: NonMetro
A43: 2 | B43: 6 | C43: 1150 | D43: 1150 | E43: 1150 | F43: 1075 | G43: 1116 | H43: 1179 | I43: 1266 | J43: 1339 | K43: 1421 | L43: 1470 | M43: 1535 | N43: 1651 | O43: 1823 | P43: 1838 | Q43: 1838 | Y43: 2599 | Z43: NonMetro
A44: 2 | B44: 7 | C44: 1242 | D44: 1242 | E44: 1242 | F44: 1143 | G44: 1183 | H44: 1246 | I44: 1333 | J44: 1407 | K44: 1489 | L44: 1537 | M44: 1602 | N44: 1719 | O44: 1890 | P44: 1905 | Q44: 1905 | Y44: 2600 | Z44: ALL
A45: 2 | B45: 8 | C45: 1334 | D45: 1334 | E45: 1334 | F45: 1210 | G45: 1251 | H45: 1313 | I45: 1400 | J45: 1474 | K45: 1556 | L45: 1604 | M45: 1670 | N45: 1786 | O45: 1957 | P45: 1972 | Q45: 1972 | Y45: 2612 | Z45: ALL
A46: 2 | B46: 9 | C46: 1426 | D46: 1426 | E46: 1426 | F46: 1277 | G46: 1318 | H46: 1380 | I46: 1467 | J46: 1541 | K46: 1623 | L46: 1671 | M46: 1737 | N46: 1853 | O46: 2024 | P46: 2039 | Q46: 2039 | Y46: 2613 | Z46: NonMetro
A47: 2 | B47: 10 | C47: 1518 | D47: 1518 | E47: 1518 | F47: 1345 | G47: 1385 | H47: 1448 | I47: 1535 | J47: 1608 | K47: 1690 | L47: 1738 | M47: 1804 | N47: 1920 | O47: 2091 | P47: 2106 | Q47: 2106 | Y47: 2614 | Z47: ALL
A48: 1 | B48: 0 | C48: 324 | D48: 339 | E48: 354 | F48: 379 | G48: 419 | H48: 483 | I48: 570 | J48: 644 | K48: 727 | L48: 775 | M48: 841 | N48: 958 | O48: 1130 | P48: 1145 | Q48: 1145 | Y48: 2617 | Z48: ALL
A49: 1 | B49: 1 | C49: 436 | D49: 436 | E49: 451 | F49: 476 | G49: 516 | H49: 579 | I49: 666 | J49: 739 | K49: 821 | L49: 869 | M49: 935 | N49: 1051 | O49: 1222 | P49: 1237 | Q49: 1237 | Y49: 2618 | Z49: NonMetro
A50: 1 | B50: 2 | C50: 546 | D50: 546 | E50: 561 | F50: 586 | G50: 626 | H50: 689 | I50: 775 | J50: 849 | K50: 931 | L50: 979 | M50: 1044 | N50: 1160 | O50: 1331 | P50: 1346 | Q50: 1346 | Y50: 2899 | Z50: NonMetro
A51: 1 | B51: 3 | C51: 671 | D51: 671 | E51: 671 | F51: 696 | G51: 736 | H51: 799 | I51: 885 | J51: 959 | K51: 1040 | L51: 1088 | M51: 1154 | N51: 1270 | O51: 1441 | P51: 1455 | Q51: 1455 | Y51: 2900 | Z51: ALL
A52: 1 | B52: 4 | C52: 796 | D52: 796 | E52: 781 | F52: 806 | G52: 846 | H52: 909 | I52: 995 | J52: 1069 | K52: 1150 | L52: 1198 | M52: 1263 | N52: 1379 | O52: 1550 | P52: 1564 | Q52: 1564 | Y52: 2906 | Z52: ALL
A53: 1 | B53: 5 | C53: 921 | D53: 921 | E53: 892 | F53: 916 | G53: 956 | H53: 1019 | I53: 1105 | J53: 1178 | K53: 1260 | L53: 1308 | M53: 1373 | N53: 1488 | O53: 1659 | P53: 1673 | Q53: 1673 | Y53: 2907 | Z53: NonMetro
A54: 1 | B54: 6 | C54: 1046 | D54: 1046 | E54: 1002 | F54: 1026 | G54: 1067 | H54: 1129 | I54: 1215 | J54: 1288 | K54: 1369 | L54: 1417 | M54: 1482 | N54: 1598 | O54: 1768 | P54: 1782 | Q54: 1782 | Y54: 2910 | Z54: NonMetro
A55: 1 | B55: 7 | C55: 1171 | D55: 1171 | E55: 1112 | F55: 1137 | G55: 1177 | H55: 1239 | I55: 1325 | J55: 1398 | K55: 1479 | L55: 1527 | M55: 1592 | N55: 1707 | O55: 1877 | P55: 1892 | Q55: 1892 | Y55: 2911 | Z55: ALL
A56: 1 | B56: 8 | C56: 1295 | D56: 1295 | E56: 1222 | F56: 1247 | G56: 1287 | H56: 1349 | I56: 1435 | J56: 1508 | K56: 1589 | L56: 1636 | M56: 1701 | N56: 1816 | O56: 1986 | P56: 2001 | Q56: 2001 | Y56: 2914 | Z56: ALL
A57: 1 | B57: 9 | C57: 1420 | D57: 1420 | E57: 1332 | F57: 1357 | G57: 1397 | H57: 1459 | I57: 1545 | J57: 1617 | K57: 1698 | L57: 1746 | M57: 1811 | N57: 1926 | O57: 2095 | P57: 2110 | Q57: 2110 | Y57: 2915 | Z57: NonMetro
A58: 1 | B58: 10 | C58: 1545 | D58: 1545 | E58: 1443 | F58: 1467 | G58: 1507 | H58: 1569 | I58: 1655 | J58: 1727 | K58: 1808 | L58: 1856 | M58: 1920 | N58: 2035 | O58: 2204 | P58: 2219 | Q58: 2219 | Y58: 2999 | Z58: NonMetro
Y59: 3000 | Z59: Metro
Y60: 3207 | Z60: Metro
Y61: 3208 | Z61: NonMetro
Y62: 3999 | Z62: NonMetro
A63: VicMetro | B63: No of dependents | C63: 0 | D63: 26000 | E63: 39000 | F63: 52000 | G63: 66000 | H63: 79000 | I63: 105000 | J63: 131000 | K63: 157000 | L63: 184000 | M63: 210000 | N63: 262000 | O63: 328000 | P63: 394000 | Q63: 656000 | Y63: 4000 | Z63: Metro
A64: 2 | B64: 0 | C64: 600 | D64: 600 | E64: 615 | F64: 640 | G64: 681 | H64: 743 | I64: 831 | J64: 905 | K64: 987 | L64: 1035 | M64: 1101 | N64: 1218 | O64: 1390 | P64: 1405 | Q64: 1405 | Y64: 4207 | Z64: Metro
A65: 2 | B65: 1 | C65: 704 | D65: 704 | E65: 704 | F65: 729 | G65: 770 | H65: 833 | I65: 921 | J65: 995 | K65: 1078 | L65: 1127 | M65: 1193 | N65: 1310 | O65: 1483 | P65: 1498 | Q65: 1498 | Y65: 4208 | Z65: NonMetro
A66: 2 | B66: 2 | C66: 771 | D66: 771 | E66: 771 | F66: 795 | G66: 836 | H66: 899 | I66: 986 | J66: 1060 | K66: 1142 | L66: 1190 | M66: 1256 | N66: 1372 | O66: 1544 | P66: 1559 | Q66: 1559 | Y66: 4299 | Z66: NonMetro
A67: 2 | B67: 3 | C67: 863 | D67: 863 | E67: 863 | F67: 863 | G67: 903 | H67: 966 | I67: 1053 | J67: 1127 | K67: 1209 | L67: 1257 | M67: 1323 | N67: 1439 | O67: 1611 | P67: 1626 | Q67: 1626 | Y67: 4300 | Z67: Metro
A68: 2 | B68: 4 | C68: 955 | D68: 955 | E68: 955 | F68: 930 | G68: 970 | H68: 1033 | I68: 1120 | J68: 1194 | K68: 1276 | L68: 1324 | M68: 1390 | N68: 1506 | O68: 1678 | P68: 1693 | Q68: 1693 | Y68: 4305 | Z68: Metro
A69: 2 | B69: 5 | C69: 1047 | D69: 1047 | E69: 1047 | F69: 997 | G69: 1038 | H69: 1100 | I69: 1187 | J69: 1261 | K69: 1343 | L69: 1391 | M69: 1457 | N69: 1573 | O69: 1745 | P69: 1760 | Q69: 1760 | Y69: 4306 | Z69: NonMetro
A70: 2 | B70: 6 | C70: 1139 | D70: 1139 | E70: 1139 | F70: 1065 | G70: 1105 | H70: 1168 | I70: 1255 | J70: 1328 | K70: 1410 | L70: 1459 | M70: 1524 | N70: 1640 | O70: 1812 | P70: 1827 | Q70: 1827 | Y70: 4499 | Z70: NonMetro
A71: 2 | B71: 7 | C71: 1231 | D71: 1231 | E71: 1231 | F71: 1132 | G71: 1172 | H71: 1235 | I71: 1322 | J71: 1396 | K71: 1478 | L71: 1526 | M71: 1592 | N71: 1708 | O71: 1879 | P71: 1894 | Q71: 1894 | Y71: 4500 | Z71: Metro
A72: 2 | B72: 8 | C72: 1323 | D72: 1323 | E72: 1323 | F72: 1199 | G72: 1240 | H72: 1302 | I72: 1389 | J72: 1463 | K72: 1545 | L72: 1593 | M72: 1659 | N72: 1775 | O72: 1946 | P72: 1961 | Q72: 1961 | Y72: 4519 | Z72: Metro
A73: 2 | B73: 9 | C73: 1415 | D73: 1415 | E73: 1415 | F73: 1266 | G73: 1307 | H73: 1370 | I73: 1456 | J73: 1530 | K73: 1612 | L73: 1660 | M73: 1726 | N73: 1842 | O73: 2013 | P73: 2028 | Q73: 2028 | Y73: 4520 | Z73: NonMetro
A74: 2 | B74: 10 | C74: 1507 | D74: 1507 | E74: 1507 | F74: 1334 | G74: 1374 | H74: 1437 | I74: 1524 | J74: 1597 | K74: 1679 | L74: 1727 | M74: 1793 | N74: 1909 | O74: 2080 | P74: 2095 | Q74: 2095 | Y74: 4999 | Z74: NonMetro
A75: 1 | B75: 0 | C75: 313 | D75: 328 | E75: 343 | F75: 368 | G75: 408 | H75: 472 | I75: 559 | J75: 633 | K75: 716 | L75: 764 | M75: 830 | N75: 947 | O75: 1119 | P75: 1134 | Q75: 1134 | Y75: 5000 | Z75: Metro
A76: 1 | B76: 1 | C76: 425 | D76: 425 | E76: 440 | F76: 465 | G76: 505 | H76: 568 | I76: 655 | J76: 728 | K76: 810 | L76: 858 | M76: 924 | N76: 1040 | O76: 1211 | P76: 1226 | Q76: 1226 | Y76: 5199 | Z76: Metro
A77: 1 | B77: 2 | C77: 536 | D77: 536 | E77: 550 | F77: 575 | G77: 615 | H77: 678 | I77: 765 | J77: 838 | K77: 920 | L77: 968 | M77: 1034 | N77: 1149 | O77: 1321 | P77: 1335 | Q77: 1335 | Y77: 5200 | Z77: NonMetro
A78: 1 | B78: 3 | C78: 660 | D78: 660 | E78: 660 | F78: 685 | G78: 725 | H78: 788 | I78: 874 | J78: 948 | K78: 1030 | L78: 1078 | M78: 1143 | N78: 1259 | O78: 1430 | P78: 1444 | Q78: 1444 | Y78: 5999 | Z78: NonMetro
A79: 1 | B79: 4 | C79: 785 | D79: 785 | E79: 771 | F79: 795 | G79: 836 | H79: 898 | I79: 984 | J79: 1058 | K79: 1139 | L79: 1187 | M79: 1253 | N79: 1368 | O79: 1539 | P79: 1553 | Q79: 1553 | Y79: 6000 | Z79: Metro
A80: 1 | B80: 5 | C80: 910 | D80: 910 | E80: 881 | F80: 905 | G80: 946 | H80: 1008 | I80: 1094 | J80: 1167 | K80: 1249 | L80: 1297 | M80: 1362 | N80: 1477 | O80: 1648 | P80: 1663 | Q80: 1663 | Y80: 6199 | Z80: Metro
A81: 1 | B81: 6 | C81: 1035 | D81: 1035 | E81: 991 | F81: 1016 | G81: 1056 | H81: 1118 | I81: 1204 | J81: 1277 | K81: 1359 | L81: 1406 | M81: 1472 | N81: 1587 | O81: 1757 | P81: 1772 | Q81: 1772 | Y81: 6200 | Z81: NonMetro
A82: 1 | B82: 7 | C82: 1160 | D82: 1160 | E82: 1101 | F82: 1126 | G82: 1166 | H82: 1228 | I82: 1314 | J82: 1387 | K82: 1468 | L82: 1516 | M82: 1581 | N82: 1696 | O82: 1866 | P82: 1881 | Q82: 1881 | Y82: 6999 | Z82: NonMetro
A83: 1 | B83: 8 | C83: 1285 | D83: 1285 | E83: 1211 | F83: 1236 | G83: 1276 | H83: 1338 | I83: 1424 | J83: 1497 | K83: 1578 | L83: 1626 | M83: 1691 | N83: 1805 | O83: 1975 | P83: 1990 | Q83: 1990 | Y83: 7000 | Z83: Metro
A84: 1 | B84: 9 | C84: 1409 | D84: 1409 | E84: 1322 | F84: 1346 | G84: 1386 | H84: 1448 | I84: 1534 | J84: 1607 | K84: 1688 | L84: 1735 | M84: 1800 | N84: 1915 | O84: 2084 | P84: 2099 | Q84: 2099 | Y84: 7099 | Z84: Metro
A85: 1 | B85: 10 | C85: 1534 | D85: 1534 | E85: 1432 | F85: 1456 | G85: 1496 | H85: 1558 | I85: 1644 | J85: 1716 | K85: 1797 | L85: 1845 | M85: 1910 | N85: 2024 | O85: 2193 | P85: 2208 | Q85: 2208 | Y85: 7100 | Z85: NonMetro
Y86: 7999 | Z86: NonMetro
A93: vicnonmetro | B93: No of dependents | C93: 0 | D93: 26000 | E93: 39000 | F93: 52000 | G93: 66000 | H93: 79000 | I93: 105000 | J93: 131000 | K93: 157000 | L93: 184000 | M93: 210000 | N93: 262000 | O93: 328000 | P93: 394000 | Q93: 656000
A94: 2 | B94: 0 | C94: 635 | D94: 635 | E94: 649 | F94: 674 | G94: 715 | H94: 778 | I94: 865 | J94: 939 | K94: 1021 | L94: 1070 | M94: 1136 | N94: 1252 | O94: 1425 | P94: 1440 | Q94: 1440
A95: 2 | B95: 1 | C95: 739 | D95: 739 | E95: 739 | F95: 764 | G95: 805 | H95: 868 | I95: 956 | J95: 1030 | K95: 1113 | L95: 1161 | M95: 1228 | N95: 1345 | O95: 1518 | P95: 1533 | Q95: 1533
A96: 2 | B96: 2 | C96: 805 | D96: 805 | E96: 805 | F96: 830 | G96: 870 | H96: 933 | I96: 1020 | J96: 1094 | K96: 1176 | L96: 1224 | M96: 1290 | N96: 1407 | O96: 1578 | P96: 1593 | Q96: 1593
A97: 2 | B97: 3 | C97: 897 | D97: 897 | E97: 897 | F97: 897 | G97: 938 | H97: 1000 | I97: 1087 | J97: 1161 | K97: 1243 | L97: 1292 | M97: 1357 | N97: 1474 | O97: 1645 | P97: 1660 | Q97: 1660
A98: 2 | B98: 4 | C98: 989 | D98: 989 | E98: 989 | F98: 964 | G98: 1005 | H98: 1068 | I98: 1155 | J98: 1228 | K98: 1310 | L98: 1359 | M98: 1424 | N98: 1541 | O98: 1712 | P98: 1727 | Q98: 1727
A99: 2 | B99: 5 | C99: 1081 | D99: 1081 | E99: 1081 | F99: 1032 | G99: 1072 | H99: 1135 | I99: 1222 | J99: 1296 | K99: 1378 | L99: 1426 | M99: 1492 | N99: 1608 | O99: 1779 | P99: 1794 | Q99: 1794
A100: 2 | B100: 6 | C100: 1173 | D100: 1173 | E100: 1173 | F100: 1099 | G100: 1139 | H100: 1202 | I100: 1289 | J100: 1363 | K100: 1445 | L100: 1493 | M100: 1559 | N100: 1675 | O100: 1846 | P100: 1861 | Q100: 1861
A101: 2 | B101: 7 | C101: 1265 | D101: 1265 | E101: 1265 | F101: 1166 | G101: 1207 | H101: 1269 | I101: 1356 | J101: 1430 | K101: 1512 | L101: 1560 | M101: 1626 | N101: 1742 | O101: 1913 | P101: 1928 | Q101: 1928
A102: 2 | B102: 8 | C102: 1357 | D102: 1357 | E102: 1357 | F102: 1233 | G102: 1274 | H102: 1337 | I102: 1423 | J102: 1497 | K102: 1579 | L102: 1627 | M102: 1693 | N102: 1809 | O102: 1980 | P102: 1995 | Q102: 1995
A103: 2 | B103: 9 | C103: 1449 | D103: 1449 | E103: 1449 | F103: 1301 | G103: 1341 | H103: 1404 | I103: 1491 | J103: 1564 | K103: 1646 | L103: 1694 | M103: 1760 | N103: 1876 | O103: 2047 | P103: 2062 | Q103: 2062
A104: 2 | B104: 10 | C104: 1541 | D104: 1541 | E104: 1541 | F104: 1368 | G104: 1408 | H104: 1471 | I104: 1558 | J104: 1631 | K104: 1713 | L104: 1761 | M104: 1827 | N104: 1943 | O104: 2114 | P104: 2129 | Q104: 2129
A105: 1 | B105: 0 | C105: 347 | D105: 363 | E105: 377 | F105: 402 | G105: 443 | H105: 506 | I105: 593 | J105: 668 | K105: 750 | L105: 798 | M105: 865 | N105: 981 | O105: 1154 | P105: 1169 | Q105: 1169
A106: 1 | B106: 1 | C106: 460 | D106: 460 | E106: 474 | F106: 499 | G106: 539 | H106: 602 | I106: 689 | J106: 763 | K106: 844 | L106: 893 | M106: 958 | N106: 1074 | O106: 1246 | P106: 1260 | Q106: 1260
A107: 1 | B107: 2 | C107: 570 | D107: 570 | E107: 584 | F107: 609 | G107: 649 | H107: 712 | I107: 799 | J107: 872 | K107: 954 | L107: 1002 | M107: 1068 | N107: 1184 | O107: 1355 | P107: 1369 | Q107: 1369
A108: 1 | B108: 3 | C108: 695 | D108: 695 | E108: 695 | F108: 719 | G108: 760 | H108: 822 | I108: 909 | J108: 982 | K108: 1064 | L108: 1112 | M108: 1177 | N108: 1293 | O108: 1464 | P108: 1479 | Q108: 1479
A109: 1 | B109: 4 | C109: 819 | D109: 819 | E109: 805 | F109: 829 | G109: 870 | H109: 932 | I109: 1018 | J109: 1092 | K109: 1173 | L109: 1221 | M109: 1287 | N109: 1402 | O109: 1573 | P109: 1588 | Q109: 1588
A110: 1 | B110: 5 | C110: 944 | D110: 944 | E110: 915 | F110: 939 | G110: 980 | H110: 1042 | I110: 1128 | J110: 1201 | K110: 1283 | L110: 1331 | M110: 1396 | N110: 1511 | O110: 1682 | P110: 1697 | Q110: 1697
A111: 1 | B111: 6 | C111: 1069 | D111: 1069 | E111: 1025 | F111: 1050 | G111: 1090 | H111: 1152 | I111: 1238 | J111: 1311 | K111: 1393 | L111: 1440 | M111: 1506 | N111: 1621 | O111: 1791 | P111: 1806 | Q111: 1806
A112: 1 | B112: 7 | C112: 1194 | D112: 1194 | E112: 1135 | F112: 1160 | G112: 1200 | H112: 1262 | I112: 1348 | J112: 1421 | K112: 1502 | L112: 1550 | M112: 1615 | N112: 1730 | O112: 1900 | P112: 1915 | Q112: 1915
A113: 1 | B113: 8 | C113: 1318 | D113: 1318 | E113: 1245 | F113: 1270 | G113: 1310 | H113: 1372 | I113: 1458 | J113: 1531 | K113: 1612 | L113: 1659 | M113: 1725 | N113: 1839 | O113: 2009 | P113: 2024 | Q113: 2024
A114: 1 | B114: 9 | C114: 1443 | D114: 1443 | E114: 1355 | F114: 1380 | G114: 1420 | H114: 1482 | I114: 1568 | J114: 1640 | K114: 1721 | L114: 1769 | M114: 1834 | N114: 1949 | O114: 2118 | P114: 2133 | Q114: 2133
A115: 1 | B115: 10 | C115: 1568 | D115: 1568 | E115: 1466 | F115: 1490 | G115: 1530 | H115: 1592 | I115: 1678 | J115: 1750 | K115: 1831 | L115: 1879 | M115: 1943 | N115: 2058 | O115: 2227 | P115: 2242 | Q115: 2242
A118: QLDMetro | B118: No of dependents | C118: 0 | D118: 26000 | E118: 39000 | F118: 52000 | G118: 66000 | H118: 79000 | I118: 105000 | J118: 131000 | K118: 157000 | L118: 184000 | M118: 210000 | N118: 262000 | O118: 328000 | P118: 394000 | Q118: 656000
A119: 2 | B119: 0 | C119: 578 | D119: 578 | E119: 593 | F119: 618 | G119: 658 | H119: 721 | I119: 809 | J119: 883 | K119: 965 | L119: 1013 | M119: 1079 | N119: 1196 | O119: 1368 | P119: 1383 | Q119: 1383
A120: 2 | B120: 1 | C120: 682 | D120: 682 | E120: 682 | F120: 707 | G120: 748 | H120: 811 | I120: 899 | J120: 973 | K120: 1056 | L120: 1104 | M120: 1171 | N120: 1288 | O120: 1461 | P120: 1476 | Q120: 1476
A121: 2 | B121: 2 | C121: 748 | D121: 748 | E121: 748 | F121: 773 | G121: 814 | H121: 877 | I121: 964 | J121: 1038 | K121: 1120 | L121: 1168 | M121: 1234 | N121: 1350 | O121: 1522 | P121: 1537 | Q121: 1537
A122: 2 | B122: 3 | C122: 841 | D122: 841 | E122: 841 | F122: 841 | G122: 881 | H122: 944 | I122: 1031 | J122: 1105 | K122: 1187 | L122: 1235 | M122: 1301 | N122: 1417 | O122: 1589 | P122: 1604 | Q122: 1604
A123: 2 | B123: 4 | C123: 933 | D123: 933 | E123: 933 | F123: 908 | G123: 948 | H123: 1011 | I123: 1098 | J123: 1172 | K123: 1254 | L123: 1302 | M123: 1368 | N123: 1484 | O123: 1656 | P123: 1671 | Q123: 1671
A124: 2 | B124: 5 | C124: 1025 | D124: 1025 | E124: 1025 | F124: 975 | G124: 1016 | H124: 1078 | I124: 1165 | J124: 1239 | K124: 1321 | L124: 1369 | M124: 1435 | N124: 1551 | O124: 1723 | P124: 1738 | Q124: 1738
A125: 2 | B125: 6 | C125: 1117 | D125: 1117 | E125: 1117 | F125: 1042 | G125: 1083 | H125: 1146 | I125: 1233 | J125: 1306 | K125: 1388 | L125: 1437 | M125: 1502 | N125: 1618 | O125: 1790 | P125: 1805 | Q125: 1805
A126: 2 | B126: 7 | C126: 1209 | D126: 1209 | E126: 1209 | F126: 1110 | G126: 1150 | H126: 1213 | I126: 1300 | J126: 1374 | K126: 1456 | L126: 1504 | M126: 1569 | N126: 1685 | O126: 1857 | P126: 1872 | Q126: 1872
A127: 2 | B127: 8 | C127: 1301 | D127: 1301 | E127: 1301 | F127: 1177 | G127: 1218 | H127: 1280 | I127: 1367 | J127: 1441 | K127: 1523 | L127: 1571 | M127: 1637 | N127: 1753 | O127: 1924 | P127: 1939 | Q127: 1939
A128: 2 | B128: 9 | C128: 1393 | D128: 1393 | E128: 1393 | F128: 1244 | G128: 1285 | H128: 1347 | I128: 1434 | J128: 1508 | K128: 1590 | L128: 1638 | M128: 1704 | N128: 1820 | O128: 1991 | P128: 2006 | Q128: 2006
A129: 2 | B129: 10 | C129: 1485 | D129: 1485 | E129: 1485 | F129: 1312 | G129: 1352 | H129: 1415 | I129: 1502 | J129: 1575 | K129: 1657 | L129: 1705 | M129: 1771 | N129: 1887 | O129: 2058 | P129: 2073 | Q129: 2073
A130: 1 | B130: 0 | C130: 290 | D130: 306 | E130: 321 | F130: 346 | G130: 386 | H130: 449 | I130: 537 | J130: 611 | K130: 693 | L130: 742 | M130: 808 | N130: 925 | O130: 1097 | P130: 1112 | Q130: 1112
A131: 1 | B131: 1 | C131: 403 | D131: 403 | E131: 418 | F131: 443 | G131: 483 | H131: 546 | I131: 633 | J131: 706 | K131: 788 | L131: 836 | M131: 902 | N131: 1018 | O131: 1189 | P131: 1204 | Q131: 1204
A132: 1 | B132: 2 | C132: 513 | D132: 513 | E132: 528 | F132: 553 | G132: 593 | H132: 656 | I132: 743 | J132: 816 | K132: 898 | L132: 946 | M132: 1012 | N132: 1127 | O132: 1299 | P132: 1313 | Q132: 1313
A133: 1 | B133: 3 | C133: 638 | D133: 638 | E133: 638 | F133: 663 | G133: 703 | H133: 766 | I133: 852 | J133: 926 | K133: 1008 | L133: 1056 | M133: 1121 | N133: 1237 | O133: 1408 | P133: 1422 | Q133: 1422
A134: 1 | B134: 4 | C134: 763 | D134: 763 | E134: 749 | F134: 773 | G134: 814 | H134: 876 | I134: 962 | J134: 1036 | K134: 1117 | L134: 1165 | M134: 1231 | N134: 1346 | O134: 1517 | P134: 1531 | Q134: 1531
A135: 1 | B135: 5 | C135: 888 | D135: 888 | E135: 859 | F135: 883 | G135: 924 | H135: 986 | I135: 1072 | J135: 1145 | K135: 1227 | L135: 1275 | M135: 1340 | N135: 1455 | O135: 1626 | P135: 1641 | Q135: 1641
A136: 1 | B136: 6 | C136: 1013 | D136: 1013 | E136: 969 | F136: 994 | G136: 1034 | H136: 1096 | I136: 1182 | J136: 1255 | K136: 1337 | L136: 1384 | M136: 1450 | N136: 1565 | O136: 1735 | P136: 1750 | Q136: 1750
A137: 1 | B137: 7 | C137: 1138 | D137: 1138 | E137: 1079 | F137: 1104 | G137: 1144 | H137: 1206 | I137: 1292 | J137: 1365 | K137: 1446 | L137: 1494 | M137: 1559 | N137: 1674 | O137: 1844 | P137: 1859 | Q137: 1859
A138: 1 | B138: 8 | C138: 1263 | D138: 1263 | E138: 1190 | F138: 1214 | G138: 1254 | H138: 1316 | I138: 1402 | J138: 1475 | K138: 1556 | L138: 1604 | M138: 1669 | N138: 1784 | O138: 1953 | P138: 1968 | Q138: 1968
A139: 1 | B139: 9 | C139: 1388 | D139: 1388 | E139: 1300 | F139: 1324 | G139: 1364 | H139: 1426 | I139: 1512 | J139: 1585 | K139: 1666 | L139: 1713 | M139: 1778 | N139: 1893 | O139: 2062 | P139: 2077 | Q139: 2077
A140: 1 | B140: 10 | C140: 1512 | D140: 1512 | E140: 1410 | F140: 1434 | G140: 1474 | H140: 1536 | I140: 1622 | J140: 1695 | K140: 1775 | L140: 1823 | M140: 1888 | N140: 2002 | O140: 2172 | P140: 2186 | Q140: 2186
A144: QLDNonMetro | B144: No of dependents | C144: 0 | D144: 26000 | E144: 39000 | F144: 52000 | G144: 66000 | H144: 79000 | I144: 105000 | J144: 131000 | K144: 157000 | L144: 184000 | M144: 210000 | N144: 262000 | O144: 328000 | P144: 394000 | Q144: 656000
A145: 2 | B145: 0 | C145: 641 | D145: 641 | E145: 655 | F145: 680 | G145: 721 | H145: 784 | I145: 871 | J145: 945 | K145: 1027 | L145: 1076 | M145: 1142 | N145: 1258 | O145: 1431 | P145: 1446 | Q145: 1446
A146: 2 | B146: 1 | C146: 745 | D146: 745 | E146: 745 | F146: 770 | G146: 811 | H146: 874 | I146: 962 | J146: 1036 | K146: 1119 | L146: 1167 | M146: 1234 | N146: 1351 | O146: 1524 | P146: 1539 | Q146: 1539
A147: 2 | B147: 2 | C147: 811 | D147: 811 | E147: 811 | F147: 836 | G147: 876 | H147: 939 | I147: 1026 | J147: 1100 | K147: 1182 | L147: 1230 | M147: 1296 | N147: 1412 | O147: 1584 | P147: 1599 | Q147: 1599
A148: 2 | B148: 3 | C148: 903 | D148: 903 | E148: 903 | F148: 903 | G148: 943 | H148: 1006 | I148: 1093 | J148: 1167 | K148: 1249 | L148: 1297 | M148: 1363 | N148: 1480 | O148: 1651 | P148: 1666 | Q148: 1666
A149: 2 | B149: 4 | C149: 995 | D149: 995 | E149: 995 | F149: 970 | G149: 1011 | H149: 1074 | I149: 1161 | J149: 1234 | K149: 1316 | L149: 1365 | M149: 1430 | N149: 1547 | O149: 1718 | P149: 1733 | Q149: 1733
A150: 2 | B150: 5 | C150: 1087 | D150: 1087 | E150: 1087 | F150: 1037 | G150: 1078 | H150: 1141 | I150: 1228 | J150: 1301 | K150: 1384 | L150: 1432 | M150: 1498 | N150: 1614 | O150: 1785 | P150: 1800 | Q150: 1800
A151: 2 | B151: 6 | C151: 1179 | D151: 1179 | E151: 1179 | F151: 1105 | G151: 1145 | H151: 1208 | I151: 1295 | J151: 1369 | K151: 1451 | L151: 1499 | M151: 1565 | N151: 1681 | O151: 1852 | P151: 1867 | Q151: 1867
A152: 2 | B152: 7 | C152: 1271 | D152: 1271 | E152: 1271 | F152: 1172 | G152: 1213 | H152: 1275 | I152: 1362 | J152: 1436 | K152: 1518 | L152: 1566 | M152: 1632 | N152: 1748 | O152: 1919 | P152: 1934 | Q152: 1934
A153: 2 | B153: 8 | C153: 1363 | D153: 1363 | E153: 1363 | F153: 1239 | G153: 1280 | H153: 1342 | I153: 1429 | J153: 1503 | K153: 1585 | L153: 1633 | M153: 1699 | N153: 1815 | O153: 1986 | P153: 2001 | Q153: 2001
A154: 2 | B154: 9 | C154: 1455 | D154: 1455 | E154: 1455 | F154: 1307 | G154: 1347 | H154: 1410 | I154: 1497 | J154: 1570 | K154: 1652 | L154: 1700 | M154: 1766 | N154: 1882 | O154: 2053 | P154: 2068 | Q154: 2068
A155: 2 | B155: 10 | C155: 1547 | D155: 1547 | E155: 1547 | F155: 1374 | G155: 1414 | H155: 1477 | I155: 1564 | J155: 1637 | K155: 1719 | L155: 1767 | M155: 1833 | N155: 1949 | O155: 2120 | P155: 2135 | Q155: 2135
A156: 1 | B156: 0 | C156: 353 | D156: 369 | E156: 383 | F156: 408 | G156: 449 | H156: 512 | I156: 599 | J156: 674 | K156: 756 | L156: 804 | M156: 871 | N156: 987 | O156: 1160 | P156: 1175 | Q156: 1175
A157: 1 | B157: 1 | C157: 465 | D157: 465 | E157: 480 | F157: 505 | G157: 545 | H157: 608 | I157: 695 | J157: 768 | K157: 850 | L157: 899 | M157: 964 | N157: 1080 | O157: 1252 | P157: 1266 | Q157: 1266
A158: 1 | B158: 2 | C158: 576 | D158: 576 | E158: 590 | F158: 615 | G158: 655 | H158: 718 | I158: 805 | J158: 878 | K158: 960 | L158: 1008 | M158: 1074 | N158: 1189 | O158: 1361 | P158: 1375 | Q158: 1375
A159: 1 | B159: 3 | C159: 700 | D159: 700 | E159: 700 | F159: 725 | G159: 765 | H159: 828 | I159: 915 | J159: 988 | K159: 1070 | L159: 1118 | M159: 1183 | N159: 1299 | O159: 1470 | P159: 1484 | Q159: 1484
A160: 1 | B160: 4 | C160: 825 | D160: 825 | E160: 811 | F160: 835 | G160: 876 | H160: 938 | I160: 1024 | J160: 1098 | K160: 1179 | L160: 1227 | M160: 1293 | N160: 1408 | O160: 1579 | P160: 1593 | Q160: 1593
A161: 1 | B161: 5 | C161: 950 | D161: 950 | E161: 921 | F161: 945 | G161: 986 | H161: 1048 | I161: 1134 | J161: 1207 | K161: 1289 | L161: 1337 | M161: 1402 | N161: 1517 | O161: 1688 | P161: 1702 | Q161: 1702
A162: 1 | B162: 6 | C162: 1075 | D162: 1075 | E162: 1031 | F162: 1055 | G162: 1096 | H162: 1158 | I162: 1244 | J162: 1317 | K162: 1398 | L162: 1446 | M162: 1511 | N162: 1627 | O162: 1797 | P162: 1811 | Q162: 1811
A163: 1 | B163: 7 | C163: 1200 | D163: 1200 | E163: 1141 | F163: 1166 | G163: 1206 | H163: 1268 | I163: 1354 | J163: 1427 | K163: 1508 | L163: 1556 | M163: 1621 | N163: 1736 | O163: 1906 | P163: 1921 | Q163: 1921
A164: 1 | B164: 8 | C164: 1324 | D164: 1324 | E164: 1251 | F164: 1276 | G164: 1316 | H164: 1378 | I164: 1464 | J164: 1537 | K164: 1618 | L164: 1665 | M164: 1730 | N164: 1845 | O164: 2015 | P164: 2030 | Q164: 2030
A165: 1 | B165: 9 | C165: 1449 | D165: 1449 | E165: 1361 | F165: 1386 | G165: 1426 | H165: 1488 | I165: 1574 | J165: 1646 | K165: 1727 | L165: 1775 | M165: 1840 | N165: 1954 | O165: 2124 | P165: 2139 | Q165: 2139
A166: 1 | B166: 10 | C166: 1574 | D166: 1574 | E166: 1471 | F166: 1496 | G166: 1536 | H166: 1598 | I166: 1683 | J166: 1756 | K166: 1837 | L166: 1884 | M166: 1949 | N166: 2064 | O166: 2233 | P166: 2248 | Q166: 2248
A170: SAMetro | B170: No of dependents | C170: 0 | D170: 26000 | E170: 39000 | F170: 52000 | G170: 66000 | H170: 79000 | I170: 105000 | J170: 131000 | K170: 157000 | L170: 184000 | M170: 210000 | N170: 262000 | O170: 328000 | P170: 394000 | Q170: 656000
A171: 2 | B171: 0 | C171: 620 | D171: 620 | E171: 635 | F171: 660 | G171: 700 | H171: 763 | I171: 850 | J171: 924 | K171: 1007 | L171: 1055 | M171: 1121 | N171: 1238 | O171: 1410 | P171: 1425 | Q171: 1425
A172: 2 | B172: 1 | C172: 724 | D172: 724 | E172: 724 | F172: 749 | G172: 790 | H172: 853 | I172: 941 | J172: 1015 | K172: 1098 | L172: 1147 | M172: 1213 | N172: 1330 | O172: 1503 | P172: 1518 | Q172: 1518
A173: 2 | B173: 2 | C173: 790 | D173: 790 | E173: 790 | F173: 815 | G173: 856 | H173: 918 | I173: 1005 | J173: 1079 | K173: 1161 | L173: 1210 | M173: 1276 | N173: 1392 | O173: 1564 | P173: 1579 | Q173: 1579
A174: 2 | B174: 3 | C174: 882 | D174: 882 | E174: 882 | F174: 882 | G174: 923 | H174: 986 | I174: 1073 | J174: 1146 | K174: 1229 | L174: 1277 | M174: 1343 | N174: 1459 | O174: 1631 | P174: 1646 | Q174: 1646
A175: 2 | B175: 4 | C175: 974 | D175: 974 | E175: 974 | F175: 950 | G175: 990 | H175: 1053 | I175: 1140 | J175: 1214 | K175: 1296 | L175: 1344 | M175: 1410 | N175: 1526 | O175: 1698 | P175: 1713 | Q175: 1713
A176: 2 | B176: 5 | C176: 1066 | D176: 1066 | E176: 1066 | F176: 1017 | G176: 1057 | H176: 1120 | I176: 1207 | J176: 1281 | K176: 1363 | L176: 1411 | M176: 1477 | N176: 1593 | O176: 1765 | P176: 1780 | Q176: 1780
A177: 2 | B177: 6 | C177: 1159 | D177: 1159 | E177: 1159 | F177: 1084 | G177: 1125 | H177: 1187 | I177: 1274 | J177: 1348 | K177: 1430 | L177: 1478 | M177: 1544 | N177: 1660 | O177: 1832 | P177: 1847 | Q177: 1847
A178: 2 | B178: 7 | C178: 1251 | D178: 1251 | E178: 1251 | F178: 1151 | G178: 1192 | H178: 1255 | I178: 1342 | J178: 1415 | K178: 1497 | L178: 1545 | M178: 1611 | N178: 1727 | O178: 1899 | P178: 1914 | Q178: 1914
A179: 2 | B179: 8 | C179: 1343 | D179: 1343 | E179: 1343 | F179: 1219 | G179: 1259 | H179: 1322 | I179: 1409 | J179: 1482 | K179: 1564 | L179: 1613 | M179: 1678 | N179: 1794 | O179: 1966 | P179: 1981 | Q179: 1981
A180: 2 | B180: 9 | C180: 1435 | D180: 1435 | E180: 1435 | F180: 1286 | G180: 1326 | H180: 1389 | I180: 1476 | J180: 1550 | K180: 1632 | L180: 1680 | M180: 1745 | N180: 1861 | O180: 2033 | P180: 2048 | Q180: 2048
A181: 2 | B181: 10 | C181: 1527 | D181: 1527 | E181: 1527 | F181: 1353 | G181: 1394 | H181: 1456 | I181: 1543 | J181: 1617 | K181: 1699 | L181: 1747 | M181: 1813 | N181: 1928 | O181: 2100 | P181: 2115 | Q181: 2115
A182: 1 | B182: 0 | C182: 332 | D182: 348 | E182: 363 | F182: 387 | G182: 428 | H182: 491 | I182: 579 | J182: 653 | K182: 735 | L182: 784 | M182: 850 | N182: 967 | O182: 1139 | P182: 1154 | Q182: 1154
A183: 1 | B183: 1 | C183: 445 | D183: 445 | E183: 460 | F183: 484 | G183: 525 | H183: 587 | I183: 674 | J183: 748 | K183: 830 | L183: 878 | M183: 944 | N183: 1060 | O183: 1231 | P183: 1246 | Q183: 1246
A184: 1 | B184: 2 | C184: 555 | D184: 555 | E184: 570 | F184: 594 | G184: 635 | H184: 697 | I184: 784 | J184: 858 | K184: 939 | L184: 988 | M184: 1053 | N184: 1169 | O184: 1340 | P184: 1355 | Q184: 1355
A185: 1 | B185: 3 | C185: 680 | D185: 680 | E185: 680 | F185: 705 | G185: 745 | H185: 807 | I185: 894 | J185: 967 | K185: 1049 | L185: 1097 | M185: 1163 | N185: 1278 | O185: 1449 | P185: 1464 | Q185: 1464
A186: 1 | B186: 4 | C186: 805 | D186: 805 | E186: 790 | F186: 815 | G186: 855 | H186: 917 | I186: 1004 | J186: 1077 | K186: 1159 | L186: 1207 | M186: 1272 | N186: 1388 | O186: 1558 | P186: 1573 | Q186: 1573
A187: 1 | B187: 5 | C187: 930 | D187: 930 | E187: 900 | F187: 925 | G187: 965 | H187: 1027 | I187: 1114 | J187: 1187 | K187: 1268 | L187: 1316 | M187: 1382 | N187: 1497 | O187: 1667 | P187: 1682 | Q187: 1682
A188: 1 | B188: 6 | C188: 1054 | D188: 1054 | E188: 1010 | F188: 1035 | G188: 1075 | H188: 1137 | I188: 1224 | J188: 1297 | K188: 1378 | L188: 1426 | M188: 1491 | N188: 1606 | O188: 1776 | P188: 1791 | Q188: 1791
A189: 1 | B189: 7 | C189: 1179 | D189: 1179 | E189: 1121 | F189: 1145 | G189: 1185 | H189: 1247 | I189: 1333 | J189: 1406 | K189: 1488 | L189: 1535 | M189: 1601 | N189: 1716 | O189: 1885 | P189: 1900 | Q189: 1900
A190: 1 | B190: 8 | C190: 1304 | D190: 1304 | E190: 1231 | F190: 1255 | G190: 1295 | H190: 1357 | I190: 1443 | J190: 1516 | K190: 1597 | L190: 1645 | M190: 1710 | N190: 1825 | O190: 1995 | P190: 2009 | Q190: 2009
A191: 1 | B191: 9 | C191: 1429 | D191: 1429 | E191: 1341 | F191: 1365 | G191: 1405 | H191: 1467 | I191: 1553 | J191: 1626 | K191: 1707 | L191: 1755 | M191: 1820 | N191: 1934 | O191: 2104 | P191: 2118 | Q191: 2118
A192: 1 | B192: 10 | C192: 1554 | D192: 1554 | E192: 1451 | F192: 1476 | G192: 1516 | H192: 1577 | I192: 1663 | J192: 1736 | K192: 1817 | L192: 1864 | M192: 1929 | N192: 2043 | O192: 2213 | P192: 2227 | Q192: 2227
A194: SANONMetro | B194: No of dependents | C194: 0 | D194: 26000 | E194: 39000 | F194: 52000 | G194: 66000 | H194: 79000 | I194: 105000 | J194: 131000 | K194: 157000 | L194: 184000 | M194: 210000 | N194: 262000 | O194: 328000 | P194: 394000 | Q194: 656000
A195: 2 | B195: 0 | C195: 577 | D195: 577 | E195: 592 | F195: 617 | G195: 658 | H195: 721 | I195: 808 | J195: 882 | K195: 964 | L195: 1013 | M195: 1079 | N195: 1195 | O195: 1368 | P195: 1382 | Q195: 1382
A196: 2 | B196: 1 | C196: 682 | D196: 682 | E196: 682 | F196: 707 | G196: 747 | H196: 811 | I196: 898 | J196: 973 | K196: 1055 | L196: 1104 | M196: 1170 | N196: 1287 | O196: 1460 | P196: 1475 | Q196: 1475
A197: 2 | B197: 2 | C197: 748 | D197: 748 | E197: 748 | F197: 773 | G197: 813 | H197: 876 | I197: 963 | J197: 1037 | K197: 1119 | L197: 1167 | M197: 1233 | N197: 1349 | O197: 1521 | P197: 1536 | Q197: 1536
A198: 2 | B198: 3 | C198: 840 | D198: 840 | E198: 840 | F198: 840 | G198: 881 | H198: 943 | I198: 1030 | J198: 1104 | K198: 1186 | L198: 1234 | M198: 1300 | N198: 1417 | O198: 1588 | P198: 1603 | Q198: 1603
A199: 2 | B199: 4 | C199: 932 | D199: 932 | E199: 932 | F199: 907 | G199: 948 | H199: 1011 | I199: 1098 | J199: 1171 | K199: 1253 | L199: 1302 | M199: 1367 | N199: 1484 | O199: 1655 | P199: 1670 | Q199: 1670
A200: 2 | B200: 5 | C200: 1024 | D200: 1024 | E200: 1024 | F200: 975 | G200: 1015 | H200: 1078 | I200: 1165 | J200: 1239 | K200: 1321 | L200: 1369 | M200: 1435 | N200: 1551 | O200: 1722 | P200: 1737 | Q200: 1737
A201: 2 | B201: 6 | C201: 1116 | D201: 1116 | E201: 1116 | F201: 1042 | G201: 1082 | H201: 1145 | I201: 1232 | J201: 1306 | K201: 1388 | L201: 1436 | M201: 1502 | N201: 1618 | O201: 1789 | P201: 1804 | Q201: 1804
A202: 2 | B202: 7 | C202: 1208 | D202: 1208 | E202: 1208 | F202: 1109 | G202: 1150 | H202: 1212 | I202: 1299 | J202: 1373 | K202: 1455 | L202: 1503 | M202: 1569 | N202: 1685 | O202: 1857 | P202: 1871 | Q202: 1871
A203: 2 | B203: 8 | C203: 1300 | D203: 1300 | E203: 1300 | F203: 1176 | G203: 1217 | H203: 1280 | I203: 1366 | J203: 1440 | K203: 1522 | L203: 1570 | M203: 1636 | N203: 1752 | O203: 1924 | P203: 1938 | Q203: 1938
A204: 2 | B204: 9 | C204: 1393 | D204: 1393 | E204: 1393 | F204: 1244 | G204: 1284 | H204: 1347 | I204: 1434 | J204: 1507 | K204: 1589 | L204: 1637 | M204: 1703 | N204: 1819 | O204: 1991 | P204: 2005 | Q204: 2005
A205: 2 | B205: 10 | C205: 1485 | D205: 1485 | E205: 1485 | F205: 1311 | G205: 1351 | H205: 1414 | I205: 1501 | J205: 1575 | K205: 1656 | L205: 1705 | M205: 1770 | N205: 1886 | O205: 2058 | P205: 2072 | Q205: 2072
A206: 1 | B206: 0 | C206: 290 | D206: 305 | E206: 320 | F206: 345 | G206: 386 | H206: 449 | I206: 536 | J206: 610 | K206: 693 | L206: 741 | M206: 807 | N206: 924 | O206: 1097 | P206: 1112 | Q206: 1112
A207: 1 | B207: 1 | C207: 403 | D207: 403 | E207: 417 | F207: 442 | G207: 483 | H207: 545 | I207: 632 | J207: 706 | K207: 788 | L207: 836 | M207: 901 | N207: 1017 | O207: 1189 | P207: 1204 | Q207: 1204
A208: 1 | B208: 2 | C208: 513 | D208: 513 | E208: 528 | F208: 552 | G208: 593 | H208: 655 | I208: 742 | J208: 815 | K208: 897 | L208: 945 | M208: 1011 | N208: 1127 | O208: 1298 | P208: 1313 | Q208: 1313
A209: 1 | B209: 3 | C209: 638 | D209: 638 | E209: 638 | F209: 662 | G209: 703 | H209: 765 | I209: 852 | J209: 925 | K209: 1007 | L209: 1055 | M209: 1120 | N209: 1236 | O209: 1407 | P209: 1422 | Q209: 1422
A210: 1 | B210: 4 | C210: 763 | D210: 763 | E210: 748 | F210: 773 | G210: 813 | H210: 875 | I210: 962 | J210: 1035 | K210: 1117 | L210: 1165 | M210: 1230 | N210: 1345 | O210: 1516 | P210: 1531 | Q210: 1531
A211: 1 | B211: 5 | C211: 888 | D211: 888 | E211: 858 | F211: 883 | G211: 923 | H211: 985 | I211: 1072 | J211: 1145 | K211: 1226 | L211: 1274 | M211: 1340 | N211: 1455 | O211: 1625 | P211: 1640 | Q211: 1640
A212: 1 | B212: 6 | C212: 1012 | D212: 1012 | E212: 968 | F212: 993 | G212: 1033 | H212: 1095 | I212: 1182 | J212: 1255 | K212: 1336 | L212: 1384 | M212: 1449 | N212: 1564 | O212: 1734 | P212: 1749 | Q212: 1749
A213: 1 | B213: 7 | C213: 1137 | D213: 1137 | E213: 1079 | F213: 1103 | G213: 1143 | H213: 1205 | I213: 1292 | J213: 1365 | K213: 1446 | L213: 1494 | M213: 1559 | N213: 1674 | O213: 1844 | P213: 1858 | Q213: 1858
A214: 1 | B214: 8 | C214: 1262 | D214: 1262 | E214: 1189 | F214: 1213 | G214: 1254 | H214: 1316 | I214: 1401 | J214: 1474 | K214: 1555 | L214: 1603 | M214: 1668 | N214: 1783 | O214: 1953 | P214: 1967 | Q214: 1967
A215: 1 | B215: 9 | C215: 1387 | D215: 1387 | E215: 1299 | F215: 1324 | G215: 1364 | H215: 1426 | I215: 1511 | J215: 1584 | K215: 1665 | L215: 1713 | M215: 1778 | N215: 1892 | O215: 2062 | P215: 2076 | Q215: 2076
A216: 1 | B216: 10 | C216: 1512 | D216: 1512 | E216: 1409 | F216: 1434 | G216: 1474 | H216: 1536 | I216: 1621 | J216: 1694 | K216: 1775 | L216: 1822 | M216: 1887 | N216: 2002 | O216: 2171 | P216: 2186 | Q216: 2186
... 115 more rows

Sheet Income Tax Rates (hidden)
A1: Threshold | B1: Amount | C1: Rate | E1: Taxoffset will be avaialbe up to financial year 2021 to 2022
A2: 0 | B2: 0 | C2: 0 | E2: Low income tax offset | F2: Amount | I2: Taxable income Applicant1 | J2: ='Serviceability Calculator'!C23+SUM('Serviceability Calculator'!D23:E23)*0.8+'Serviceability Calculator'!H23*0.8+'Serviceability Calculator'!E25+'Serviceability Calculator'!F23 -> 90000
A3: 18201 | B3: 0 | C3: 0.16 | E3: 0 | F3: 700
A4: 45001 | B4: 4288 | C4: 0.3 | E4: 37501 | F4: =IF(AND(J2>=E4,J2<=E5),F3-(J2-E4)*0.05,0) -> 0 | H4: between $37,501 and $45,000, you will get $700 minus 5 cents for every $1 above $37,500
A5: 135001 | B5: 31288 | C5: 0.37 | E5: 45001 | F5: =IF(AND(J2>=E5,J3<E6),325-(J2-E5)*0.015,0) -> -349.985 | H5: between $45,001 and $66,667, you will get $325 minus 1.5 cents for every $1 above $45,000
A6: 190000 | B6: 51638 | C6: 0.45 | E6: 66667 | F6: 0
E9: Low and Middle income tax offset | F9: Amount
A10: Medicare Surcharge for single | E10: 0 | F10: 0
A11: Threshold | B11: Rate | E11: 37000 | F11: 0
A12: 0 | B12: 0 | E12: 48000 | F12: 0
A13: 90000 | B13: 0.01 | E13: 90000 | F13: 0
A14: 105000 | B14: 0.0125 | E14: 126000 | F14: 0
A15: 140000 | B15: 0.015
E18: Applicant one
E19: Low income tax offset | F19: =VLOOKUP(J2,$E$3:$F$6,2) -> 0
A20: Medicare Surcharge for couple | E20: Low and Middle income tax offset | F20: =VLOOKUP(J2,$E$10:$F$14,2) -> 0
A21: Threshold | B21: Rate
A22: 0 | B22: 0
A23: 180000 | B23: 0.01
A24: 210000 | B24: 0.0125
A25: 280000 | B25: 0.015
E26: Low income tax offset | F26: Amount | I26: Taxable income Applicant2 | J26: ='Serviceability Calculator'!C24+SUM('Serviceability Calculator'!D24:E24)*0.8+'Serviceability Calculator'!H24*0.8+'Serviceability Calculator'!F24 -> 0
E27: 0 | F27: 700
E28: 37501 | F28: =IF(AND(J26>=E28,J26<=E29),F27-(J26-E28)*0.05,0) -> 0 | H28: between $37,501 and $45,000, you will get $700 minus 5 cents for every $1 above $37,500
A29: Threshold for a Discretionary Basics | E29: 45001 | F29: =IF(AND(J26>=E29,J27<E30),325-(J26-E29)*0.015,0) -> 0 | H29: between $45,001 and $66,667, you will get $325 minus 1.5 cents for every $1 above $45,000
A30: Pay TV - $20/month = $240 per year | E30: 66667 | F30: 0
A31: Child Care - $10/week= $520 per year
E33: Low and Middle income tax offset | F33: Amount
E34: 0 | F34: 0
E35: 37000 | F35: 0
E36: 48000 | F36: 0
E37: 90000 | F37: 0
E38: 126000 | F38: 0
E41: Applicant Two
E42: Low income tax offset | F42: =VLOOKUP(J26,E27:F30,2) -> 700
E43: Low and Middle income tax offset | F43: =VLOOKUP(J26,E34:F38,2) -> 0
